bitfinex/quotes_SOLUSD_20260113
["timestamp","ask_amount","ask_price","bid_price","bid_amount"]
[1768265242459,0.66183071,138.95,138.92,7.86588069]
[1768265244367,0.66183071,138.98,138.93,0.66762279]
[1768265244533,2.85370549,138.97,138.93,0.66762279]
[1768265244853,0.24037045,138.97,138.93,0.66762279]
[1768265245057,2.85370549,138.97,138.93,0.66762279]
[1768265245469,2.85370549,138.97,138.94,7.19735137]
[1768265245639,2.85370549,138.97,138.94,7.86497416]
[1768265246234,0.24037045,138.97,138.94,7.86497416]
[1768265246652,0.24037045,138.97,138.95,0.66762279]
[1768265248759,3.27516575,138.98,138.95,7.86444149]
[1768265248958,0.66183071,138.98,138.95,7.86444149]
[1768265250949,0.24037045,138.97,138.94,7.86479324]
[1768265252070,0.24037045,138.97,138.95,0.66762279]
[1768265252243,3.27516575,138.98,138.95,0.66762279]
[1768265252574,0.66183071,138.98,138.95,0.66762279]
[1768265254061,3.27516575,138.99,138.96,0.66762279]
[1768265254376,0.66183071,138.99,138.96,0.66762279]
[1768265254862,3.27516575,138.99,138.96,0.66762279]
[1768265258155,0.66183071,138.99,138.96,0.66762279]
[1768265260167,7.39384636,139.01,138.97,0.70045327]
[1768265260344,0.2,139.01,138.99,0.70045327]
[1768265260664,0.2,139.01,138.98,0.70045327]
[1768265260843,0.90203825,139.01,138.98,0.70045327]
[1768265262169,0.90203825,139.01,138.98,7.8957184]
[1768265267068,0.2,139.01,138.99,0.70045327]
[1768265267661,0.40056499,139.01,138.99,0.70045327]
[1768265267866,0.2,139.01,138.99,0.70045327]
[1768265286617,0.2,139.02,139.01,0.71184397]
[1768265287100,0.2,139.03,139.01,0.71184397]
[1768265287302,0.2,139.03,139.02,0.71184397]
[1768265292902,0.2,139.03,139.01,9.57592383]
[1768265296909,0.2,139.03,139.02,0.66268669]
[1768265299110,0.2,139.03,139.01,8.86407986]
[1768265299407,0.2,139.03,139.01,9.52676655]
[1768265300210,0.2,139.03,139.02,0.66268669]
[1768265301404,0.2,139.03,139.01,7.85636359]
[1768265301592,0.2,139.03,139.01,9.52676655]
[1768265304395,0.2,139.03,139.01,0.66268669]
[1768265304796,0.2,139.03,139.01,7.8563875]
[1768265305518,0.8762707,139.03,139.01,7.19370081]
[1768265305709,0.8762707,139.03,139.01,7.8563875]
[1768265307015,0.2,139.03,139.01,7.8563875]
[1768265307808,0.2,139.03,139.02,0.66268669]
[1768265308019,8.07167816,139.07,139.04,0.66268669]
[1768265308315,0.6802307,139.05,139.03,0.66268669]
[1768265308518,0.6802307,139.05,139.02,2.33308965]
[1768265309013,0.6802307,139.05,139.02,0.66268669]
[1768265309494,0.6802307,139.05,139.02,7.85585937]
[1768265311730,7.87195898,139.05,139.02,0.66268669]
[1768265311894,0.67960994,139.03,139.01,7.85624186]
[1768265312100,0.67960994,139.03,138.99,0.66268669]
[1768265312316,0.67960994,139.03,139.0,13.12]
[1768265312897,0.67960994,139.03,138.99,0.66268669]
[1768265313423,0.61876902,139.02,139.0,0.66268669]
[1768265313603,0.61876902,139.02,138.99,7.85714137]
[1768265314223,0.61876902,139.02,138.98,0.66268669]
[1768265314520,0.62403114,138.98,138.93,1.67040296]
[1768265314706,2.2944341,138.98,138.95,0.70539271]
[1768265314904,0.62403114,138.98,138.95,0.70539271]
[1768265315437,0.62403114,138.98,138.95,7.90212131]
[1768265316297,0.67429467,139.0,138.96,0.70539271]
[1768265317224,0.67429467,139.0,138.97,0.70539271]
[1768265318018,2.34469763,139.0,138.97,0.70539271]
[1768265319326,0.67429467,139.0,138.97,0.70539271]
[1768265319509,2.34469763,139.0,138.97,0.70539271]
[1768265319826,0.62403114,138.99,138.96,7.90145622]
[1768265322436,2.34469763,139.0,138.97,0.70539271]
[1768265322727,1.67040296,139.01,138.97,0.70539271]
[1768265323104,9.53791723,139.02,138.97,0.70539271]
[1768265323304,1.67040296,139.01,138.97,0.70539271]
[1768265323503,2.2944341,139.01,138.97,0.70539271]
[1768265324633,2.2944341,139.01,138.98,0.70539271]
[1768265327533,1.67040296,139.01,138.99,0.70539271]
[1768265327719,2.2944341,139.01,138.98,7.9006701]
[1768265332134,2.2944341,139.01,138.98,0.70539271]
[1768265332434,2.34419499,139.0,138.97,7.90104424]
[1768265332638,0.67379203,139.0,138.97,7.90104424]
[1768265332833,2.34419499,139.0,138.97,7.90104424]
[1768265333320,0.67379203,139.0,138.97,7.90104424]
[1768265335023,0.67429467,139.01,138.98,0.70539271]
[1768265336135,2.34469763,139.01,138.98,0.70539271]
[1768265338336,0.67429467,139.01,138.98,0.70539271]
[1768265338534,2.34469763,139.01,138.98,7.90054075]
[1768265339533,0.62403114,139.03,138.99,0.70539271]
[1768265339832,0.62403114,139.03,139.0,7.89963731]
[1768265340640,0.62403114,139.03,139.01,0.70539271]
[1768265340839,0.67429467,139.06,139.01,0.70539271]
[1768265341022,0.67429467,139.06,139.02,0.70539271]
[1768265341222,2.34469763,139.06,139.02,0.70539271]
[1768265341823,0.62403114,139.05,139.02,0.70539271]
[1768265342039,0.67379203,139.04,139.01,7.89907094]
[1768265342636,1.67040296,139.02,139.0,13.14]
[1768265342947,0.62452875,139.03,139.0,20.33417054]
[1768265343151,0.62452875,139.03,139.0,21.03956325]
[1768265343453,2.29493171,139.03,139.0,21.03956325]
[1768265345238,0.62452875,139.03,139.0,21.03956325]
[1768265347152,2.33790729,139.06,139.01,7.89312342]
[1768265347354,3.27668962,139.06,139.02,0.69986557]
[1768265347549,0.86750433,139.07,139.03,0.69986557]
[1768265349144,0.86750433,139.07,139.04,7.19217491]
[1768265349326,0.2,139.09,139.06,0.69986557]
[1768265351262,0.2,139.09,139.07,0.69986557]
[1768265351552,0.2,139.09,139.07,0.58564466]
[1768265352859,0.2,139.11,139.08,2.60918529]
[1768265353261,0.2,139.11,139.08,9.79880125]
[1768265353440,0.2,139.11,139.09,0.67682689]
[1768265354154,0.68607762,139.1,139.07,13.79682689]
[1768265354357,0.88607762,139.11,139.07,13.79682689]
[1768265354559,0.88607762,139.11,139.08,7.19008224]
[1768265355261,0.88607762,139.11,139.08,7.86690913]
[1768265355458,0.2,139.11,139.08,7.86690913]
[1768265359265,0.88607762,139.11,139.08,7.86690913]
[1768265359962,0.88607762,139.11,139.08,0.67682689]
[1768265360763,0.2,139.11,139.08,7.8665291]
[1768265363246,0.2,139.11,139.08,0.67682689]
[1768265363450,0.88607762,139.11,139.08,0.67682689]
[1768265364571,0.88607762,139.11,139.08,7.86673894]
[1768265366156,0.68607762,139.1,139.07,20.98727123]
[1768265366358,0.88607762,139.11,139.08,0.67682689]
[1768265367165,0.88607762,139.11,139.08,7.86693125]
[1768265368570,0.2,139.11,139.09,0.67682689]
[1768265368767,0.88607762,139.11,139.08,7.86693125]
[1768265370069,0.88607762,139.11,139.08,0.67682689]
[1768265370250,0.88607762,139.11,139.08,7.86682015]
[1768265370848,0.68607762,139.1,139.07,20.31049896]
[1768265371465,0.68607762,139.1,139.07,20.98732585]
[1768265372752,2.80918529,139.11,139.08,0.67682689]
[1768265373166,3.49526291,139.11,139.08,0.67682689]
[1768265374474,3.49526291,139.11,139.07,20.31049896]
[1768265374475,0.6711698,139.1,139.07,20.99914697]
[1768265375666,3.48035509,139.11,139.08,0.68864801]
[1768265377484,0.2,139.11,139.09,0.68864801]
[1768265377776,0.6711698,139.1,139.08,7.19000354]
[1768265377974,0.8711698,139.11,139.08,7.87865155]
[1768265378572,0.6711698,139.1,139.08,7.19000354]
[1768265379460,0.2,139.11,139.08,7.87865155]
[1768265379660,0.2,139.11,139.08,10.48783684]
[1768265380072,0.2,139.11,139.09,0.68864801]
[1768265380563,19.55360063,139.13,139.1,3.2978333]
[1768265380957,19.55360063,139.13,139.1,16.4178333]
[1768265381157,19.55360063,139.13,139.1,13.80864801]
[1768265381863,19.55360063,139.13,139.1,20.9976077]
[1768265387678,18.88243083,139.13,139.11,0.68864801]
[1768265388773,19.55360063,139.13,139.1,20.9976077]
[1768265389391,19.55360063,139.13,139.1,23.60679299]
[1768265389863,19.55360063,139.13,139.1,13.80864801]
[1768265390463,19.55360063,139.13,139.1,20.9976545]
[1768265394384,19.55360063,139.13,139.1,13.80864801]
[1768265396096,0.6711698,139.12,139.09,7.18939341]
[1768265396297,0.6711698,139.12,139.09,20.30939341]
[1768265396699,0.6711698,139.12,139.09,20.99804142]
[1768265396998,0.6711698,139.12,139.09,13.80864801]
[1768265397174,0.6711698,139.12,139.09,20.99822894]
[1768265399398,0.6711698,139.11,139.09,13.12]
[1768265401778,0.6711698,139.1,139.07,0.68864801]
[1768265401993,0.6711698,139.1,139.07,13.80864801]
[1768265402997,0.6711698,139.1,139.07,13.12]
[1768265403780,0.6711698,139.09,139.07,13.12]
[1768265404085,0.64116981,139.09,139.07,13.12]
[1768265404804,0.61116982,139.09,139.07,13.12]
[1768265406404,2.60918529,139.08,139.03,0.69494914]
[1768265406581,7.18960932,139.09,139.03,0.69494914]
[1768265406582,2.60918529,139.07,139.03,0.69494914]
[1768265406781,0.7223755,139.06,139.03,7.88731061]
[1768265406981,3.33156079,139.06,139.03,7.88731061]
[1768265407178,0.7223755,139.06,139.03,7.88731061]
[1768265409116,0.7223755,139.1,139.06,0.69494914]
[1768265409308,0.7223755,139.1,139.05,15.48354164]
[1768265409604,0.7223755,139.09,139.05,15.48354164]
[1768265409992,0.7223755,139.09,139.06,7.19114051]
[1768265411208,30.0,139.07,139.06,7.19114051]
[1768265411886,0.7223755,139.06,139.01,7.19337625]
[1768265412198,1.6685925,139.05,139.01,21.00832539]
[1768265412701,1.6685925,139.05,139.0,0.69494914]
[1768265412702,1.6685925,139.03,139.0,0.69494914]
[1768265413488,30.0,139.02,139.0,0.69494914]
[1768265414105,30.0,139.02,139.0,7.88906258]
[1768265416412,30.0,139.02,139.0,0.69494914]
[1768265416586,0.69667753,139.05,139.01,0.68599624]
[1768265416993,0.69667753,139.04,139.01,0.68599624]
[1768265417504,0.69667753,139.04,139.0,25.17955329]
[1768265417706,0.69667753,139.04,139.0,7.19394178]
[1768265428093,0.69667753,139.04,139.0,8.86253428]
[1768265428518,0.69667753,139.07,139.02,1.6685925]
[1768265428727,0.69667753,139.07,139.02,14.7885925]
[1768265428899,0.69667753,139.07,139.02,21.98134983]
[1768265429399,0.69667753,139.07,139.04,1.6685925]
[1768265429596,110.03617175,139.11,139.05,15.47458874]
[1768265429796,111.70476425,139.11,139.06,0.68599624]
[1768265430011,7.18869372,139.11,139.06,2.35458874]
[1768265430894,8.85728622,139.11,139.06,8.85948204]
[1768265431525,7.18869372,139.11,139.06,8.85948204]
[1768265431728,0.69667753,139.1,139.06,9.54547828]
[1768265432206,0.69667753,139.1,139.06,7.87688578]
[1768265432409,0.69667753,139.1,139.06,9.54547828]
[1768265433723,0.69667753,139.1,139.06,7.87688578]
[1768265433923,0.69667753,139.1,139.06,7.19088954]
[1768265434224,0.69667753,139.09,139.06,7.19088954]
[1768265437722,0.69667753,139.09,139.05,20.3114806]
[1768265438028,0.69603849,139.08,139.05,20.3114806]
[1768265439720,2.36463099,139.09,139.05,20.97735949]
[1768265440224,0.69603849,139.08,139.05,20.97735949]
[1768265448633,0.69603849,139.08,139.05,13.12]
[1768265448936,0.69603849,139.06,139.04,7.19199929]
[1768265449315,0.69603849,139.06,139.03,13.12]
[1768265449316,0.69603849,139.06,139.03,7.19251228]
[1768265450635,0.69603849,139.05,139.02,20.9789801]
[1768265451932,0.69603849,139.05,139.02,20.31310121]
[1768265454334,0.69603849,139.04,139.02,20.31310121]
[1768265454937,0.69603849,139.03,139.0,7.194152]
[1768265455146,0.6660385,139.03,139.01,7.19362872]
[1768265455318,0.6660385,139.03,139.0,20.31404575]
[1768265455841,0.6660385,139.03,139.0,13.12]
[1768265456143,1.6685925,139.03,139.0,20.31413772]
[1768265457120,0.69603849,139.02,139.0,20.31413772]
[1768265457927,0.69603849,139.04,139.01,0.66587889]
[1768265458746,0.69603849,139.04,139.0,38.96562812]
[1768265458952,0.69603849,139.03,139.0,20.98001661]
[1768265460241,0.69603849,139.04,139.0,20.98001661]
[1768265461143,0.69603849,139.06,139.02,0.66587889]
[1768265461546,0.69603849,139.06,139.02,7.85871529]
[1768265461924,0.69603849,139.05,139.02,7.85871529]
[1768265462248,0.69603849,139.05,139.04,0.724]
[1768265468348,110.71455113,139.09,139.05,0.65897983]
[1768265468660,103.52494905,139.09,139.05,0.65897983]
[1768265468954,0.67747102,139.08,139.05,0.65897983]
[1768265471356,0.67747102,139.08,139.05,7.85048317]
[1768265472655,0.67747102,139.08,139.05,7.19150334]
[1768265476958,0.67271883,139.06,139.04,7.91594914]
[1768265477145,0.67271883,139.06,139.03,7.19240092]
[1768265481555,3.280436,139.09,139.05,0.66865435]
[1768265481861,0.67271883,139.08,139.05,0.66865435]
[1768265482361,3.280436,139.08,139.05,0.66865435]
[1768265482564,0.67271883,139.07,139.04,7.19185929]
[1768265483062,0.67271883,139.07,139.04,7.86051364]
[1768265483364,0.67271883,139.07,139.04,7.19185929]
[1768265487664,0.67271883,139.07,139.04,9.79957646]
[1768265487966,0.67271883,139.07,139.04,10.46823081]
[1768265492174,0.67271883,139.08,139.05,3.27637152]
[1768265493048,0.67271883,139.07,138.99,18.65485282]
[1768265493247,0.67271883,139.07,138.96,42.65910669]
[1768265493248,0.67271883,139.07,139.02,2.60771717]
[1768265493475,0.67271883,139.07,139.02,10.46929259]
[1768265493854,0.67271883,139.07,139.03,3.27637152]
[1768265494671,0.66623027,139.06,139.03,3.27637152]
[1768265494862,0.63623028,139.06,139.03,3.27637152]
[1768265496283,0.63623028,139.06,139.03,2.60771717]
[1768265500590,0.63623028,139.06,139.04,2.60771717]
[1768265500775,0.66623027,139.05,139.04,2.60771717]
[1768265500963,0.63623028,139.05,139.03,2.60771717]
[1768265501167,0.60622504,139.05,139.03,2.60771717]
[1768265501761,0.60622504,139.05,139.02,7.88598061]
[1768265501762,17.97309222,139.1,139.05,0.69305954]
[1768265501972,17.97309222,139.1,139.06,2.60771717]
[1768265502376,7.1890726,139.1,139.06,3.30077671]
[1768265502581,26.07033686,139.13,139.09,2.60771717]
[1768265502777,26.07033686,139.13,139.11,2.60771717]
[1768265502980,18.88243083,139.13,139.11,2.60771717]
[1768265503183,0.66623027,139.12,139.08,0.69305954]
[1768265503378,18.88243083,139.13,139.09,7.18955842]
[1768265503884,26.06996873,139.13,139.08,7.88298296]
[1768265504285,18.88243083,139.13,139.11,2.60771717]
[1768265505076,26.06995505,139.13,139.11,2.60771717]
[1768265505476,0.66623027,139.12,139.11,2.60771717]
[1768265505892,26.06995505,139.13,139.11,2.60771717]
[1768265507980,26.09581177,139.13,139.11,2.60771717]
[1768265511701,18.88243083,139.13,139.11,3.30077671]
[1768265512391,18.88243083,139.13,139.11,2.60771717]
[1768265512699,18.90828755,139.13,139.11,2.60771717]
[1768265513194,0.02585672,139.12,139.07,13.81305954]
[1768265513376,0.02585672,139.12,139.07,0.69305954]
[1768265513577,0.02585672,139.12,139.07,3.30077671]
[1768265513879,0.02585672,139.12,139.08,2.60771717]
[1768265514301,0.02585672,139.12,139.08,3.30077671]
[1768265516082,0.02585672,139.12,139.08,2.60771717]
[1768265518279,0.02585672,139.11,139.07,0.69305954]
[1768265518499,0.02585672,139.11,139.08,0.69305954]
[1768265519901,7.21441253,139.11,139.08,0.69305954]
[1768265520296,7.18822546,139.12,139.09,0.69305954]
[1768265521406,7.21408218,139.12,139.09,0.69305954]
[1768265522517,0.02585672,139.11,139.08,0.69305954]
[1768265523495,9.82179935,139.12,139.08,0.69305954]
[1768265530108,0.02585672,139.11,139.08,0.69305954]
[1768265530615,0.02585672,139.1,139.07,0.72256255]
[1768265530920,2.63357389,139.11,139.07,0.72256255]
[1768265531403,1.69445982,139.11,139.07,0.72256255]
[1768265533196,8.88306661,139.11,139.07,0.72256255]
[1768265533513,7.21446351,139.11,139.08,0.72256255]
[1768265538895,0.02585672,139.11,139.08,0.72256255]
[1768265540319,1.69445982,139.12,139.09,0.70728524]
[1768265541824,0.02585672,139.12,139.09,0.70728524]
[1768265542008,1.69445982,139.12,139.09,0.70728524]
[1768265542208,8.88263141,139.12,139.08,0.70728524]
[1768265542408,8.88263141,139.12,139.08,7.89733826]
[1768265543199,8.88263141,139.12,139.09,0.70728524]
[1768265547217,1.6686031,139.11,139.09,0.70728524]
[1768265548413,8.88263141,139.12,139.09,0.70728524]
[1768265548612,5.3821154,139.11,139.09,0.70728524]
[1768265548827,8.88263141,139.12,139.09,0.70728524]
[1768265549013,5.38211416,139.11,139.09,0.70728524]
[1768265549215,8.88263141,139.12,139.09,0.70728524]
[1768265549513,5.38240336,139.11,139.09,0.70728524]
[1768265549714,8.88263141,139.12,139.09,0.70728524]
[1768265549925,5.3824046,139.11,139.09,0.70728524]
[1768265550109,8.88263141,139.12,139.09,0.70728524]
[1768265550314,5.38288916,139.11,139.09,0.70728524]
[1768265550514,8.88263141,139.12,139.09,0.70728524]
[1768265550725,5.38288792,139.11,139.09,0.70728524]
[1768265550927,8.88263141,139.12,139.09,0.70728524]
[1768265551126,5.38288916,139.11,139.09,0.70728524]
[1768265551335,8.88263141,139.12,139.09,0.70728524]
[1768265551512,5.38343838,139.11,139.09,0.70728524]
[1768265551726,8.88263141,139.12,139.09,0.70728524]
[1768265552018,5.38343586,139.11,139.09,0.70728524]
[1768265552221,7.21402831,139.12,139.09,0.70728524]
[1768265552420,5.38406286,139.11,139.09,0.70728524]
[1768265552628,7.21402831,139.12,139.09,0.70728524]
[1768265552829,5.38410992,139.11,139.09,0.70728524]
[1768265553024,0.02585672,139.1,139.04,17.97983916]
[1768265553225,0.02585672,139.07,139.04,0.70728524]
[1768265553535,5.38353324,139.06,139.02,1.6686031]
[1768265553729,0.02585672,139.07,139.02,1.6686031]
[1768265554131,1.69445982,139.07,139.02,1.6686031]
[1768265554335,8.88512774,139.07,139.03,7.192669]
[1768265555342,8.88512774,139.07,139.04,0.67944106]
[1768265556440,1.69445982,139.07,139.04,0.67944106]
[1768265560443,8.88513519,139.07,139.04,0.67944106]
[1768265563748,1.78976979,139.05,139.02,0.67944106]
[1768265564444,1.6686031,139.05,139.02,0.67944106]
[1768265564950,1.6686031,139.05,139.03,0.67944106]
[1768265566130,1.6686031,139.06,139.04,0.67944106]
[1768265566328,5.37747521,139.05,139.04,0.67944106]
[1768265567138,5.37747521,139.05,139.03,7.87211817]
[1768265567346,0.12116669,139.06,139.03,7.87211817]
[1768265567546,5.37665072,139.05,139.03,7.87211817]
[1768265567860,0.12116669,139.06,139.03,7.87211817]
[1768265568053,5.37665196,139.05,139.03,7.87211817]
[1768265568244,8.98044516,139.07,139.04,0.67944106]
[1768265568558,5.3761039,139.06,139.04,0.67944106]
[1768265568758,5.3761039,139.05,139.04,0.67944106]
[1768265569238,8.98044516,139.07,139.04,0.67944106]
[1768265569441,5.37569458,139.06,139.04,0.67944106]
[1768265569631,5.37569458,139.05,139.04,0.67944106]
[1768265569837,8.98044516,139.07,139.04,0.67944106]
[1768265578061,7.31184206,139.07,139.04,0.67944106]
[1768265578366,8.98044516,139.07,139.04,0.67944106]
[1768265581465,1.6686031,139.06,139.04,0.67944106]
[1768265581840,5.37392491,139.05,139.04,0.67944106]
[1768265582040,0.71075136,139.08,139.02,8.86181271]
[1768265582245,2.37935446,139.08,139.02,8.86181271]
[1768265582451,0.71075136,139.07,139.03,1.6686031]
[1768265582848,0.71075136,139.07,139.02,7.19320961]
[1768265583052,0.71075136,139.07,139.02,8.86181271]
[1768265583554,0.71075136,139.07,139.02,26.84483673]
[1768265585546,0.71075136,139.07,139.03,1.6686031]
[1768265588166,0.71075136,139.07,139.02,26.84483673]
[1768265591277,0.71075136,139.07,139.02,27.78465963]
[1768265591484,0.71075136,139.07,139.02,20.59145002]
[1768265592080,0.71075136,139.07,139.04,0.724]
[1768265594103,5.38336207,139.06,139.04,0.724]
[1768265594385,0.71075136,139.07,139.04,0.724]
[1768265595574,3.31709709,139.06,139.04,0.724]
[1768265595973,0.70867109,139.06,139.04,0.724]
[1768265596967,0.70867109,139.1,139.05,2.608426]
[1768265597169,0.70867109,139.1,139.07,2.608426]
[1768265597575,0.70867109,139.1,139.06,9.79908565]
[1768265598465,0.70867109,139.1,139.06,7.19065965]
[1768265606201,5.37875508,139.09,139.06,7.19065965]
[1768265606502,0.70867109,139.1,139.06,7.19065965]
[1768265609413,0.70867109,139.1,139.06,2.608426]
[1768265610904,0.70867109,139.1,139.07,7.19062342]
[1768265615978,0.70867109,139.1,139.05,25.17080186]
[1768265616200,0.70867109,139.1,139.06,2.608426]
[1768265617809,0.70867109,139.1,139.07,7.19062342]
[1768265618508,6.05109319,139.09,139.07,7.19062342]
[1768265618708,0.6450084,139.09,139.07,7.19062342]
[1768265619107,0.6450084,139.09,139.06,7.2209073]
[1768265620102,0.6450084,139.09,139.06,2.63842599]
[1768265621912,0.6450084,139.09,139.07,7.19062342]
[1768265622205,0.61500841,139.09,139.07,7.19062342]
[1768265624298,0.61500841,139.09,139.06,0.02999999]
[1768265624499,0.61500841,139.09,139.06,2.63842599]
[1768265625717,0.61500841,139.09,139.07,7.19062342]
[1768265626598,0.58500842,139.09,139.07,7.19062342]
[1768265627215,0.58500842,139.09,139.06,7.2211405]
[1768265629312,0.58500842,139.09,139.05,27.86922783]
[1768265629313,5.38036819,139.08,139.05,27.86922783]
[1768265629509,6.0551596,139.07,139.04,7.91597906]
[1768265629816,6.02440183,139.06,139.04,0.724]
[1768265630119,0.6450084,139.06,139.04,0.724]
[1768265630500,2.608426,139.08,139.04,7.91608493]
[1768265630704,5.37938363,139.07,139.04,7.91608493]
[1768265631013,5.37929055,139.06,139.04,7.91608493]
[1768265631215,2.608426,139.08,139.04,7.91608493]
[1768265631509,5.37903663,139.07,139.04,7.91608493]
[1768265631716,6.05404502,139.06,139.04,7.91608493]
[1768265632022,0.67500839,139.06,139.04,7.91608493]
[1768265635523,0.67500839,139.06,139.04,0.724]
[1768265636307,0.67500839,139.06,139.04,7.9161661]
[1768265639530,3.28343439,139.07,139.04,8.03616606]
[1768265639829,5.38025645,139.06,139.04,8.03616606]
[1768265640126,3.28343439,139.07,139.04,8.03616606]
[1768265640127,3.28343439,139.07,139.04,7.9161661]
[1768265640332,5.38004953,139.06,139.04,7.9161661]
[1768265640533,3.28343439,139.07,139.04,7.9161661]
[1768265640727,5.38084065,139.06,139.04,7.9161661]
[1768265640919,3.28343439,139.07,139.04,7.9161661]
[1768265641118,5.38084838,139.06,139.04,7.9161661]
[1768265641317,0.67500839,139.07,139.04,7.9161661]
[1768265641619,5.38085798,139.06,139.04,7.9161661]
[1768265641833,0.67500839,139.07,139.04,7.9161661]
[1768265642013,6.05586637,139.06,139.04,7.9161661]
[1768265642213,0.67500839,139.06,139.04,7.9161661]
[1768265652343,0.67500839,139.06,139.04,0.724]
[1768265659259,2.3443781,139.06,139.04,0.724]
[1768265660054,5.38009961,139.05,139.04,0.724]
[1768265660257,5.35009962,139.05,139.04,0.724]
[1768265660554,2.3443781,139.06,139.04,0.724]
[1768265664465,0.67500839,139.06,139.04,0.724]
[1768265664648,2.38304751,139.07,139.04,0.724]
[1768265665045,0.7136778,139.06,139.04,0.724]
[1768265667171,0.7136778,139.09,139.06,0.11999996]
[1768265667473,0.7136778,139.09,139.05,13.23999996]
[1768265668545,0.7136778,139.09,139.05,20.43130613]
[1768265670147,0.7136778,139.09,139.05,22.10067584]
[1768265672174,5.38500897,139.08,139.05,22.10067584]
[1768265672463,0.7136778,139.09,139.05,22.10067584]
[1768265672765,5.38553968,139.08,139.05,22.10067584]
[1768265672969,0.7136778,139.09,139.05,22.10067584]
[1768265673164,5.38553968,139.08,139.05,22.10067584]
[1768265673365,0.7136778,139.09,139.05,22.10067584]
[1768265673566,5.38603431,139.08,139.05,20.43130613]
[1768265673762,0.7136778,139.11,139.07,0.11999996]
[1768265673953,0.7136778,139.09,139.06,7.31069431]
[1768265674146,5.38552311,139.08,139.06,7.31069431]
[1768265674350,0.7136778,139.09,139.06,7.31069431]
[1768265674753,0.7136778,139.09,139.05,25.170195]
[1768265675044,36.85183834,139.13,139.05,13.12]
[1768265675045,0.70026438,139.07,139.05,13.12]
[1768265676184,0.70026438,139.07,139.04,7.9160622]
[1768265677274,0.70026438,139.07,139.04,8.03606216]
[1768265679258,0.70026438,139.08,139.05,0.11999996]
[1768265679574,5.3856613,139.07,139.05,0.11999996]
[1768265679779,0.70026438,139.08,139.05,0.11999996]
[1768265680075,5.38565879,139.07,139.05,0.11999996]
[1768265680257,0.70026438,139.08,139.05,0.11999996]
[1768265680456,5.38560309,139.07,139.05,0.11999996]
[1768265680658,2.36963409,139.08,139.05,0.11999996]
[1768265680861,5.38560184,139.07,139.05,0.11999996]
[1768265681059,2.36963409,139.08,139.05,0.11999996]
[1768265681377,5.38560184,139.07,139.05,0.11999996]
[1768265681578,2.36963409,139.08,139.05,0.11999996]
[1768265681771,5.38551751,139.07,139.05,0.11999996]
[1768265681952,2.36963409,139.08,139.04,7.9160622]
[1768265682159,5.38551751,139.07,139.04,8.03606216]
[1768265682378,2.36963409,139.08,139.04,8.03606216]
[1768265682564,5.38551007,139.07,139.04,8.03606216]
[1768265682756,2.36963409,139.08,139.04,8.03606216]
[1768265682953,5.38551132,139.07,139.04,8.03606216]
[1768265683175,2.36963409,139.08,139.04,8.03606216]
[1768265683474,5.38551132,139.07,139.04,8.03606216]
[1768265683676,2.36963409,139.08,139.04,8.03606216]
[1768265683869,5.3855122,139.07,139.04,8.03606216]
[1768265684073,2.36963409,139.08,139.04,8.03606216]
[1768265684264,5.3855122,139.07,139.04,8.03606216]
[1768265684464,2.36963409,139.08,139.04,8.03606216]
[1768265684666,5.38552246,139.07,139.04,8.03606216]
[1768265684866,2.36963409,139.08,139.04,8.03606216]
[1768265685067,5.38552121,139.07,139.04,8.03606216]
[1768265685268,2.36963409,139.08,139.04,8.03606216]
[1768265685468,5.38560193,139.07,139.04,8.03606216]
[1768265685675,2.36963409,139.08,139.04,8.03606216]
[1768265685882,5.38560193,139.07,139.04,8.03606216]
[1768265686179,2.36963409,139.08,139.04,8.03606216]
[1768265686352,5.38554064,139.07,139.04,8.03606216]
[1768265686556,2.36963409,139.08,139.04,8.03606216]
[1768265686756,5.38562299,139.07,139.04,8.03606216]
[1768265686962,2.36963409,139.08,139.04,8.03606216]
[1768265687161,5.38562424,139.07,139.04,8.03606216]
[1768265687379,2.36963409,139.08,139.04,8.03606216]
[1768265687573,5.38553123,139.07,139.04,8.03606216]
[1768265687775,2.36963409,139.08,139.04,8.03606216]
[1768265688086,0.70026438,139.08,139.05,7.31150363]
[1768265694194,0.70026438,139.1,139.06,0.11999996]
[1768265694382,0.70026438,139.11,139.07,13.12]
[1768265694570,0.70026438,139.1,139.07,13.12]
[1768265694772,0.70026438,139.09,139.06,13.23999996]
[1768265695268,0.70026438,139.09,139.06,20.43072249]
[1768265695479,0.70026438,139.1,139.07,0.11999996]
[1768265696370,0.70026438,139.1,139.07,7.31060055]
[1768265701386,0.70026438,139.09,139.06,7.19113559]
[1768265701701,0.70026438,139.07,139.05,7.19164653]
[1768265702367,0.70026438,139.07,139.04,8.03603195]
[1768265703588,1.66936971,139.08,139.04,8.03603195]
[1768265703780,0.70026438,139.07,139.04,8.03603195]
[1768265704501,2.3701511,139.07,139.04,8.03616023]
[1768265704875,0.70078139,139.07,139.04,8.03616023]
[1768265705784,1.66936971,139.08,139.04,8.03616023]
[1768265705785,2.3701511,139.08,139.04,8.03616023]
[1768265706280,0.70078139,139.08,139.05,0.11999996]